bitfinex/quotes_BTCUSD_20241018
["timestamp","ask_amount","ask_price","bid_price","bid_amount"]
[1729277529365,27.36617987,68886.0,68885.0,4.78982075]
[1729277529567,27.36603957,68886.0,68885.0,4.78982075]
[1729277529771,27.36596942,68886.0,68885.0,4.78982075]
[1729277529976,27.36575897,68886.0,68885.0,4.78982075]
[1729277530280,27.36561867,68886.0,68885.0,4.78982075]
[1729277530519,27.36533807,68886.0,68885.0,5.02252246]
[1729277530718,27.36519777,68886.0,68885.0,4.78982075]
[1729277531196,27.36498732,68886.0,68885.0,4.78982075]
[1729277531410,27.36477687,68886.0,68885.0,4.78982075]
[1729277531574,27.36463657,68886.0,68885.0,5.02252246]
[1729277531778,27.36449627,68886.0,68885.0,4.78982075]
[1729277531992,27.36435597,68886.0,68885.0,5.29459575]
[1729277532209,27.36428582,68886.0,68885.0,5.29459575]
[1729277532406,27.36414552,68886.0,68885.0,5.29459575]
[1729277532627,27.36407537,68886.0,68885.0,5.29459575]
[1729277532758,27.36393507,68886.0,68885.0,5.29459575]
[1729277533083,27.36372462,68886.0,68885.0,5.29459575]
[1729277533278,27.36358432,68886.0,68885.0,5.29459575]
[1729277533480,27.36344402,68886.0,68885.0,5.29459575]
[1729277533680,27.36330372,68886.0,68885.0,5.29459575]
[1729277533892,27.36323357,68886.0,68885.0,5.29459575]
[1729277534107,27.36309327,68886.0,68885.0,5.29459575]
[1729277534291,27.36267237,68886.0,68885.0,5.29459575]
[1729277534526,27.36260222,68886.0,68885.0,5.29459575]
[1729277534728,27.36246192,68886.0,68885.0,5.29459575]
[1729277534938,27.36225147,68886.0,68885.0,5.29459575]
[1729277535125,27.36218132,68886.0,68885.0,5.29459575]
[1729277535481,27.36197087,68886.0,68885.0,5.29459575]
[1729277535695,27.36190072,68886.0,68885.0,5.29459575]
[1729277535902,27.36147982,68886.0,68885.0,5.4435549]
[1729277536046,27.36147982,68886.0,68885.0,5.47037112]
[1729277536254,27.36147982,68886.0,68885.0,5.64195127]
[1729277536460,27.36133952,68886.0,68885.0,5.64195127]
[1729277536660,27.27959083,68886.0,68885.0,5.64195127]
[1729277537038,27.27952068,68886.0,68885.0,5.64195127]
[1729277537248,27.27902963,68886.0,68885.0,5.5451549]
[1729277537728,27.27888933,68886.0,68885.0,5.5451549]
[1729277537986,27.27860873,68886.0,68885.0,5.5451549]
[1729277538482,27.27825798,68886.0,68885.0,5.5451549]
[1729277538972,27.27804753,68886.0,68885.0,5.5451549]
[1729277539216,27.27783708,68886.0,68885.0,5.5451549]
[1729277539475,27.27776693,68886.0,68885.0,5.5451549]
[1729277539726,27.27755648,68886.0,68885.0,5.5451549]
[1729277539959,27.27748633,68886.0,68885.0,5.5451549]
[1729277540811,27.27748633,68886.0,68885.0,5.4435549]
[1729277541224,27.27748633,68886.0,68885.0,5.2726999]
[1729277542007,27.27748633,68886.0,68885.0,5.12374075]
[1729277542212,27.27748633,68886.0,68885.0,5.06110532]
[1729277542412,27.27748633,68886.0,68885.0,4.47157675]
[1729277543706,27.27748633,68886.0,68885.0,3.56636675]
[1729277543937,27.27748633,68886.0,68885.0,3.61019175]
[1729277544342,27.27748633,68886.0,68885.0,3.45670875]
[1729277545129,27.54038633,68886.0,68885.0,0.59778275]
[1729277546328,27.54038633,68886.0,68885.0,1.68544705]
[1729277547421,27.54038633,68886.0,68885.0,1.78544705]
[1729277549263,27.54038633,68886.0,68885.0,0.69778275]
[1729277549474,27.54038633,68886.0,68885.0,0.26252175]
[1729277550555,27.54038633,68886.0,68885.0,0.4528187]
[1729277550881,27.68934548,68886.0,68885.0,0.4528187]
[1729277551096,27.68934548,68886.0,68885.0,0.3348927]
[1729277551277,27.68934548,68886.0,68885.0,0.14459575]
[1729277551681,27.68934548,68886.0,68885.0,1.24176875]
[1729277552113,27.68934548,68886.0,68885.0,1.26014187]
[1729277552311,27.68934548,68886.0,68885.0,3.69267587]
[1729277552520,27.68934548,68886.0,68885.0,3.56957887]
[1729277553375,27.68934548,68886.0,68885.0,2.24716087]
[1729277554152,27.54038633,68886.0,68885.0,2.43745782]
[1729277554301,27.27748633,68886.0,68885.0,3.33482697]
[1729277557296,27.26540405,68886.0,68885.0,3.33482697]
[1729277557721,27.26540405,68886.0,68885.0,3.31645385]
[1729277560686,27.26540405,68886.0,68885.0,3.32883465]
[1729277563853,27.26540405,68886.0,68885.0,3.31645385]
[1729277564885,27.26540405,68886.0,68885.0,2.08569885]
[1729277565092,27.34550405,68886.0,68885.0,2.08569885]
[1729277565293,27.34550405,68886.0,68885.0,2.27589372]
[1729277565648,27.34550405,68886.0,68885.0,2.08569885]
[1729277566870,27.34550405,68886.0,68885.0,2.27588219]
[1729277567191,27.4944632,68886.0,68885.0,0.04459575]
[1729277567406,27.6939632,68886.0,68885.0,0.04459575]
[1729277569551,27.26540405,68886.0,68885.0,2.74850262]
[1729277572017,27.26540405,68886.0,68885.0,2.03571862]
[1729277572239,27.26540405,68886.0,68885.0,1.89011862]
[1729277572460,27.26540405,68886.0,68885.0,2.08024556]
[1729277572608,27.26540405,68886.0,68885.0,2.07824556]
[1729277573228,27.26540405,68886.0,68885.0,1.70218062]
[1729277573430,27.4143632,68886.0,68885.0,0.14257952]
[1729277573649,27.4143632,68886.0,68885.0,0.04375052]
[1729277574081,27.4143632,68886.0,68884.0,0.04375052]
[1729277574333,27.26540405,68886.0,68885.0,0.04375052]
[1729277574850,27.26540405,68886.0,68885.0,0.04457952]
[1729277575303,27.53840405,68886.0,68885.0,0.14457952]
[1729277576391,27.53840405,68886.0,68885.0,0.04457952]
[1729277577218,27.6873632,68886.0,68885.0,0.04457952]
[1729277578198,27.6893632,68886.0,68885.0,0.06523797]
[1729277578418,27.6893632,68886.0,68885.0,0.04376416]
[1729277578669,27.6893632,68886.0,68885.0,0.04376541]
[1729277579086,27.6893632,68886.0,68885.0,0.000829]
[1729277579809,27.7123632,68886.0,68885.0,0.000829]
[1729277582620,0.002,68884.0,68883.0,0.001658]
[1729277582942,0.002,68884.0,68872.0,0.001658]
[1729277582943,0.002,68873.0,68872.0,0.001658]
[1729277583171,0.025,68870.0,68869.0,0.00166]
[1729277583364,0.25205915,68870.0,68869.0,0.00166]
[1729277583569,0.41218226,68870.0,68869.0,0.00166]
[1729277583770,0.1992,68862.0,68861.0,0.21809141]
[1729277584088,0.1992,68862.0,68851.0,0.0429463]
[1729277584089,0.002,68852.0,68851.0,0.0429463]
[1729277584308,0.1849,68848.0,68844.0,0.08588243]
[1729277584533,0.14895915,68847.0,68836.0,0.08591045]
[1729277584732,0.15631774,68847.0,68834.0,0.08757045]
[1729277585271,0.15631774,68847.0,68836.0,0.503861]
[1729277585373,0.15631774,68847.0,68840.0,0.21809141]
[1729277585605,0.21809141,68846.0,68841.0,1.013987]
[1729277585818,0.21809141,68854.0,68834.0,0.00166]
[1729277585819,0.14895915,68845.0,68837.0,0.08591045]
[1729277586023,0.15631441,68845.0,68842.0,0.03993163]
[1729277586233,0.14895915,68845.0,68843.0,1.310524]
[1729277586444,0.14895915,68845.0,68844.0,0.718479]
[1729277586669,0.14895915,68845.0,68844.0,0.732679]
[1729277586881,0.14895915,68845.0,68835.0,0.00166]
[1729277587085,0.14895915,68845.0,68838.0,0.1]
[1729277587310,0.14895915,68845.0,68840.0,0.1]
[1729277587731,0.14895915,68845.0,68842.0,0.1]
[1729277587938,0.14895915,68845.0,68844.0,0.1]
[1729277588154,0.14895915,68845.0,68844.0,1.214648]
[1729277588369,0.14895915,68845.0,68844.0,1.230172]
[1729277588608,0.14895915,68845.0,68844.0,0.411332]
[1729277588817,0.14895915,68845.0,68844.0,0.1]
[1729277589037,0.14895915,68845.0,68836.0,0.000829]
[1729277589252,0.1837,68844.0,68836.0,0.000829]
[1729277589453,0.14895915,68843.0,68836.0,0.000829]
[1729277589662,0.15095915,68843.0,68836.0,0.000829]
[1729277589866,0.00727615,68842.0,68836.0,0.000829]
[1729277590073,0.14895915,68841.0,68836.0,0.000829]
[1729277590502,0.00727283,68840.0,68836.0,0.000829]
[1729277590708,0.14895915,68839.0,68836.0,0.000829]
[1729277591331,0.0072695,68838.0,68836.0,0.000829]
[1729277591539,0.14895915,68837.0,68836.0,0.000829]
[1729277591760,0.15622699,68837.0,68836.0,0.000829]
[1729277593455,0.15622699,68837.0,68836.0,0.974131]
[1729277594106,0.14895915,68837.0,68836.0,0.974131]
[1729277600972,0.21809141,68854.0,68837.0,0.1]
[1729277601219,0.21809141,68854.0,68836.0,1.9625587]
[1729277601220,0.14895915,68853.0,68839.0,0.1793]
[1729277601458,0.14895915,68853.0,68840.0,5.1]
[1729277601459,0.21809141,68847.0,68840.0,5.1]
[1729277601688,0.14895915,68853.0,68841.0,0.1]
[1729277601933,0.14895915,68853.0,68843.0,0.1]
[1729277602131,0.14895915,68853.0,68845.0,0.1]
[1729277602408,0.14895915,68853.0,68840.0,0.04278004]
[1729277602409,0.14895915,68853.0,68847.0,0.1]
[1729277602627,0.14895915,68853.0,68848.0,5.1]
[1729277602830,0.14895915,68853.0,68849.0,0.1]
[1729277603035,0.14895915,68853.0,68851.0,0.1]
[1729277603500,0.40189141,68868.0,68853.0,0.1]
[1729277603725,0.21809141,68860.0,68854.0,3.2946]
[1729277603965,0.14895915,68859.0,68855.0,0.1]
[1729277604207,0.14895915,68859.0,68857.0,0.1]
[1729277604408,0.14895915,68859.0,68855.0,0.1]
[1729277604715,0.14895915,68859.0,68858.0,0.1]
[1729277605920,0.14895915,68859.0,68845.0,0.0764]
[1729277606176,0.14895915,68859.0,68851.0,0.1]
[1729277606644,0.14895915,68859.0,68853.0,0.1]
[1729277606908,0.14895915,68859.0,68855.0,0.1]
[1729277607138,0.14895915,68859.0,68857.0,0.1]
[1729277608359,0.14895915,68859.0,68845.0,0.21909318]
[1729277608587,0.14895915,68859.0,68851.0,0.1]
[1729277608824,0.14895915,68859.0,68853.0,0.1]
[1729277609063,0.21809141,68858.0,68855.0,0.1]
[1729277609286,0.14895915,68857.0,68856.0,0.897715]
[1729277609521,0.14895915,68857.0,68856.0,0.997715]
[1729277609762,0.14895915,68857.0,68856.0,1.567171]
[1729277610007,0.14895915,68857.0,68856.0,1.657513]
[1729277610280,0.14895915,68857.0,68856.0,1.567171]
[1729277610792,0.14895915,68857.0,68856.0,1.082405]
[1729277612521,0.14895915,68857.0,68856.0,0.882405]
[1729277612946,0.14895915,68857.0,68848.0,5.0]
[1729277613161,0.14895915,68857.0,68849.0,5.0]
[1729277613373,0.14895915,68857.0,68845.0,0.0764]
[1729277613374,0.14895915,68857.0,68850.0,4.653138]
[1729277613584,0.14895915,68857.0,68851.0,2.296063]
[1729277613788,0.14895915,68857.0,68852.0,2.315714]
[1729277613989,0.14895915,68857.0,68853.0,0.956194]
[1729277614196,0.14895915,68857.0,68854.0,0.837761]
[1729277614396,0.14895915,68857.0,68855.0,2.666963]
[1729277614598,0.14895915,68857.0,68856.0,2.703942]
[1729277614810,0.14895915,68857.0,68856.0,2.803944]
[1729277615017,0.14895915,68857.0,68856.0,2.658856]
[1729277615191,0.14895915,68857.0,68856.0,0.716029]
[1729277616886,0.14895915,68857.0,68848.0,0.04280239]
[1729277617095,0.002,68855.0,68850.0,0.1]
[1729277617296,0.14895915,68854.0,68850.0,0.1]
[1729277617696,0.0073188,68853.0,68850.0,0.1]
[1729277617899,0.14895915,68852.0,68850.0,0.1]
[1729277618324,0.00731548,68851.0,68844.0,0.04280239]
[1729277618524,0.14895915,68850.0,68845.0,0.14280239]
[1729277618733,0.14895915,68850.0,68847.0,0.1]
[1729277619131,0.14895915,68850.0,68849.0,0.1]
[1729277619350,0.14895915,68850.0,68849.0,2.153413]
[1729277621498,0.14895915,68850.0,68849.0,2.19621539]
[1729277622318,0.14895915,68850.0,68849.0,2.153413]
[1729277622865,0.14895915,68850.0,68849.0,2.23901779]
[1729277623067,0.14895915,68850.0,68849.0,2.12879718]
[1729277623425,0.14895915,68850.0,68849.0,2.064256]
[1729277623719,0.14895915,68850.0,68849.0,2.14986079]
[1729277624321,0.14895915,68850.0,68849.0,2.064256]
[1729277624528,0.14895915,68850.0,68849.0,2.17126198]
[1729277624951,0.14895915,68850.0,68849.0,2.064256]
[1729277625724,0.14895915,68850.0,68849.0,2.10819748]
[1729277625950,0.14895915,68850.0,68849.0,2.31460466]
[1729277627730,0.14895915,68850.0,68849.0,2.18619748]
[1729277639087,0.14895915,68850.0,68849.0,0.22277048]
[1729277639509,0.001658,68856.0,68849.0,0.22277048]
[1729277639730,0.001658,68856.0,68853.0,0.1]
[1729277639731,0.14895915,68855.0,68853.0,0.1]
[1729277639951,0.14895915,68855.0,68854.0,5.0]
[1729277640181,0.14895915,68855.0,68854.0,5.14394148]
[1729277640425,0.14895915,68855.0,68854.0,0.14394148]
[1729277640643,0.14895915,68855.0,68854.0,5.14394148]
[1729277644467,0.14895915,68855.0,68854.0,5.27341283]
[1729277647355,0.43865915,68855.0,68854.0,0.10798396]
[1729277647602,0.43865915,68855.0,68849.0,0.000829]
[1729277647603,0.023,68854.0,68853.0,0.10798396]
[1729277647862,0.17195915,68854.0,68853.0,0.10796585]
[1729277648101,0.17195915,68854.0,68849.0,0.000829]
[1729277648102,0.15627595,68854.0,68852.0,0.10796947]
[1729277648328,0.14895915,68853.0,68852.0,0.10796947]
[1729277648586,0.14895915,68853.0,68849.0,0.000829]
[1729277648802,0.15627429,68853.0,68849.0,0.000829]
[1729277649278,0.002,68852.0,68849.0,0.000829]
[1729277649541,0.14895915,68851.0,68849.0,0.000829]
[1729277649776,0.15627096,68851.0,68849.0,0.000829]
[1729277650231,0.002,68850.0,68849.0,0.000829]
[1729277650468,0.15095915,68850.0,68849.0,0.000829]
[1729277650696,0.1582693,68850.0,68849.0,0.000829]
[1729277650910,0.1562693,68850.0,68849.0,0.000829]
[1729277652321,0.1582693,68850.0,68849.0,0.000829]
[1729277652794,0.1562693,68850.0,68849.0,0.000829]
[1729277653023,0.1562693,68850.0,68849.0,0.20879156]
[1729277653475,0.1582693,68850.0,68849.0,0.20879605]
[1729277653768,0.1562693,68850.0,68849.0,0.20879605]
[1729277654241,0.1562693,68850.0,68849.0,0.10876661]
[1729277654471,0.1792693,68850.0,68849.0,0.20876661]
[1729277654697,0.3631693,68850.0,68849.0,0.06560159]
[1729277654946,0.5158693,68850.0,68849.0,0.000829]
[1729277655176,0.57509623,68850.0,68849.0,0.04401671]
[1729277655412,0.5158693,68850.0,68849.0,0.000829]
[1729277655681,0.002,68843.0,68842.0,0.06477259]
[1729277655896,0.002,68841.0,68840.0,0.28285419]
[1729277656129,0.002,68840.0,68839.0,0.08635841]
[1729277656368,0.17195915,68840.0,68839.0,0.08635841]
[1729277656610,0.17195915,68840.0,68836.0,0.000829]
[1729277656611,0.023,68839.0,68838.0,0.08630157]
[1729277656857,0.17195915,68839.0,68837.0,0.08630469]
[1729277657093,0.14895915,68838.0,68836.0,0.08713369]
[1729277657335,0.14895915,68837.0,68836.0,0.08713177]
[1729277657585,0.15619688,68837.0,68836.0,0.08713177]
[1729277657833,0.15619688,68837.0,68836.0,0.000829]
[1729277658553,0.15619688,68837.0,68836.0,0.06552003]
[1729277659049,0.14895915,68837.0,68836.0,0.06552003]
[1729277659506,0.15619688,68837.0,68836.0,0.000829]
[1729277660495,0.15619688,68837.0,68836.0,0.04393259]
[1729277660923,0.15619688,68837.0,68836.0,0.000829]
[1729277661284,0.15619688,68837.0,68836.0,0.04393227]
[1729277662625,0.15619688,68837.0,68836.0,0.000829]
[1729277663772,0.15819688,68837.0,68836.0,0.000829]
[1729277664174,0.004171,68836.0,68835.0,0.04476327]
[1729277664410,0.15313015,68836.0,68835.0,0.04476327]
[1729277664612,0.15313015,68836.0,68835.0,0.00166]
[1729277664857,0.16036622,68836.0,68835.0,0.00166]
[1729277665088,0.18536622,68836.0,68835.0,0.00166]
[1729277665300,0.18536622,68836.0,68832.0,0.02271214]
[1729277665301,0.002,68833.0,68832.0,0.01173779]
[1729277665513,0.36615915,68833.0,68832.0,0.01173779]
[1729277665759,0.36615915,68833.0,68825.0,0.001658]
[1729277665760,0.025,68827.0,68825.0,0.001658]
[1729277665978,0.25035915,68827.0,68825.0,0.001658]
[1729277666179,0.45295056,68827.0,68825.0,0.001658]
[1729277671410,0.45295056,68827.0,68821.0,0.001658]
[1729277671411,0.3001,68825.0,68821.0,0.001658]
[1729277671659,0.44905915,68825.0,68821.0,0.001658]
[1729277671870,0.45795825,68825.0,68821.0,0.001658]
[1729277672106,0.50375408,68825.0,68821.0,0.001658]
[1729277672341,0.45795825,68825.0,68821.0,0.001658]
[1729277673564,0.45795825,68825.0,68822.0,0.1]
[1729277673791,0.002,68822.0,68821.0,0.001658]
[1729277674031,0.17095915,68822.0,68821.0,0.001658]
[1729277674271,0.17985201,68822.0,68821.0,0.001658]
[1729277674470,0.18005201,68822.0,68821.0,0.001658]
[1729277674884,0.17985201,68822.0,68821.0,0.001658]
[1729277675329,0.18281629,68822.0,68821.0,0.001658]
[1729277675541,0.18301629,68822.0,68821.0,0.001658]
[1729277675748,0.18301629,68822.0,68821.0,0.003658]
[1729277677244,0.18301629,68822.0,68821.0,0.001658]
[1729277677451,0.18301629,68822.0,68821.0,0.003658]
[1729277681716,0.18281629,68822.0,68821.0,0.003658]
[1729277684969,0.1568175,68822.0,68821.0,0.003658]
[1729277686829,0.1568175,68822.0,68821.0,0.001658]
[1729277687033,0.1568175,68822.0,68821.0,0.002658]
[1729277689413,0.1798175,68822.0,68821.0,0.002658]
[1729277689787,0.1800175,68822.0,68821.0,0.002658]
[1729277690879,0.1798175,68822.0,68821.0,0.002658]
[1729277692476,0.1568175,68822.0,68821.0,0.002658]
[1729277694370,0.16769063,68822.0,68821.0,0.002658]
[1729277694619,0.1570175,68822.0,68821.0,0.002658]
[1729277694858,0.16955073,68822.0,68821.0,0.002658]
[1729277695551,0.2096718,68822.0,68821.0,0.002658]
[1729277695780,0.19235073,68822.0,68821.0,0.002658]
[1729277696919,0.19255073,68822.0,68821.0,0.002658]
[1729277701409,0.1816775,68822.0,68821.0,0.002658]
[1729277701640,0.19255518,68822.0,68821.0,0.002658]
[1729277704206,0.19255415,68822.0,68821.0,0.002658]
[1729277704916,0.22355591,68822.0,68821.0,0.002658]
[1729277706129,0.22355591,68822.0,68814.0,0.000974]
[1729277706130,0.0002,68816.0,68814.0,0.000974]
[1729277706332,0.14895915,68815.0,68814.0,0.000974]
[1729277706533,0.17195915,68815.0,68814.0,0.000974]
[1729277706738,0.17215915,68815.0,68814.0,0.000974]
[1729277706894,0.17195915,68815.0,68814.0,0.000974]
[1729277707392,0.17195915,68815.0,68814.0,0.001974]
[1729277707758,0.17195915,68815.0,68814.0,0.000974]
[1729277708221,0.17195915,68815.0,68814.0,0.001974]
[1729277708564,0.17215915,68815.0,68814.0,0.001974]
[1729277708761,0.17195915,68815.0,68814.0,0.001974]
[1729277710223,0.18937507,68815.0,68814.0,0.001974]
[1729277711296,0.17215915,68815.0,68814.0,0.001974]
[1729277712718,0.42905915,68815.0,68814.0,0.001974]
[1729277713109,0.35265915,68815.0,68814.0,0.001974]
[1729277713722,0.35265915,68815.0,68814.0,0.000974]
[1729277714318,0.35265915,68815.0,68808.0,0.03]
[1729277714319,0.43395915,68815.0,68808.0,0.03]
[1729277714531,0.0002,68792.0,68789.0,0.08645793]
[1729277714741,0.0002,68790.0,68782.0,0.08645793]
[1729277714942,0.0002,68790.0,68780.0,0.16658693]
[1729277715184,0.0002,68790.0,68780.0,0.080129]
[1729277715440,0.0002,68787.0,68780.0,0.080129]
[1729277715654,0.0002,68787.0,68780.0,0.000829]
[1729277715905,0.17215915,68787.0,68780.0,0.000829]
[1729277716089,0.0002,68781.0,68780.0,0.000829]
[1729277716358,0.17195915,68781.0,68780.0,0.000829]
[1729277716572,0.17195915,68781.0,68780.0,0.082429]
[1729277716797,0.14895915,68781.0,68780.0,0.082429]
[1729277717815,0.14895915,68781.0,68780.0,0.083429]
[1729277728411,0.17195915,68781.0,68780.0,0.001829]
[1729277733425,0.14895915,68781.0,68780.0,0.001829]
[1729277739368,0.14895915,68781.0,68780.0,0.652261]
[1729277739492,0.01164471,68787.0,68781.0,0.1]
[1729277739688,0.36705056,68786.0,68785.0,0.41694664]
[1729277739888,0.14895915,68786.0,68785.0,0.41694664]
[1729277740091,0.14895915,68786.0,68785.0,0.3739]
[1729277740911,0.14895915,68786.0,68785.0,0.43846997]
[1729277741296,0.14895915,68786.0,68785.0,0.3739]
[1729277742273,0.14895915,68786.0,68785.0,2.074356]
[1729277742477,0.01164471,68787.0,68786.0,0.3603]
[1729277742678,0.20866464,68799.0,68790.0,0.0018]
[1729277742897,0.20866464,68799.0,68795.0,0.0018]
[1729277742898,0.14895915,68798.0,68795.0,0.0018]
[1729277743103,0.14895915,68798.0,68797.0,0.0767]
[1729277743316,0.14895915,68798.0,68797.0,3.829006]
[1729277743649,0.14895915,68798.0,68797.0,0.936071]
[1729277744015,0.14895915,68798.0,68797.0,0.64656]
[1729277744603,0.14895915,68798.0,68797.0,0.404096]
[1729277745893,0.14895915,68798.0,68797.0,0.405096]
[1729277746367,0.14895915,68798.0,68797.0,0.404096]
[1729277746606,0.14895915,68798.0,68797.0,0.405096]
[1729277747558,0.14895915,68798.0,68797.0,0.1777]
[1729277748444,0.14895915,68798.0,68797.0,0.0777]
[1729277748920,0.14895915,68798.0,68797.0,0.463827]
[1729277749199,0.14895915,68798.0,68797.0,2.418089]
[1729277749618,0.14895915,68798.0,68797.0,1.997944]
[1729277750566,0.14895915,68798.0,68797.0,0.1777]
[1729277751224,0.14895915,68798.0,68797.0,0.576423]
[1729277751375,0.14895915,68798.0,68797.0,0.1777]
[1729277752159,0.14895915,68798.0,68797.0,0.576423]
[1729277752400,0.14895915,68798.0,68797.0,0.0777]
[1729277752610,0.14895915,68798.0,68797.0,0.1777]
[1729277752812,0.14895915,68798.0,68797.0,0.591023]
[1729277753073,0.14895915,68798.0,68797.0,0.967489]
[1729277753279,0.14895915,68798.0,68797.0,0.920259]
[1729277754335,0.14895915,68798.0,68797.0,0.921088]
[1729277756504,0.14895915,68798.0,68797.0,0.922888]
[1729277756944,0.14895915,68798.0,68797.0,0.921088]
[1729277760236,0.14895915,68798.0,68797.0,0.96414902]
[1729277760866,0.14895915,68798.0,68797.0,0.98567954]
[1729277761642,0.14895915,68798.0,68797.0,0.96416646]
[1729277761853,0.14895915,68798.0,68797.0,0.61537346]
[1729277762068,0.14895915,68798.0,68797.0,0.572295]
[1729277762275,0.14895915,68798.0,68797.0,0.001829]
[1729277765635,0.17215915,68798.0,68797.0,0.001829]
[1729277765836,0.18702087,68798.0,68797.0,0.001829]
[1729277766246,0.18722087,68798.0,68797.0,0.001829]
[1729277766453,0.17215915,68798.0,68797.0,0.001829]
[1729277766689,0.17215915,68798.0,68797.0,0.000829]
[1729277766889,0.17195915,68798.0,68797.0,0.000829]
[1729277767246,0.17215915,68798.0,68797.0,0.000829]
[1729277767632,0.36525915,68798.0,68797.0,0.000829]
[1729277768012,0.36525915,68798.0,68797.0,0.001829]
[1729277768150,0.4525225,68798.0,68797.0,0.001829]
[1729277768407,0.4525225,68798.0,68797.0,0.000829]
[1729277768612,0.45251843,68798.0,68797.0,0.000829]
[1729277768816,0.45251843,68798.0,68797.0,0.001829]
[1729277769241,0.45251843,68798.0,68797.0,0.000829]
[1729277769678,0.45251843,68798.0,68797.0,0.001829]
[1729277770407,0.60541843,68798.0,68797.0,0.001829]
[1729277771453,0.45251843,68798.0,68797.0,0.001829]
[1729277772032,0.51322607,68798.0,68797.0,0.001829]
[1729277772384,0.44165915,68798.0,68797.0,0.001829]
[1729277772836,0.45250705,68798.0,68797.0,0.001829]
[1729277773512,0.14895915,68798.0,68797.0,0.001829]
[1729277773754,0.14895915,68798.0,68797.0,0.083929]
[1729277773999,0.14895915,68798.0,68797.0,0.183929]
[1729277774468,0.14895915,68798.0,68797.0,0.182929]
[1729277774671,0.14895915,68798.0,68797.0,0.677721]
[1729277774874,0.14895915,68798.0,68797.0,0.72081753]
[1729277775077,0.14895915,68798.0,68797.0,2.50630553]
[1729277775279,0.14895915,68798.0,68797.0,2.462209]
[1729277775486,0.14895915,68798.0,68797.0,2.463209]
[1729277775954,0.14895915,68798.0,68797.0,0.75866394]
[1729277776363,0.14895915,68798.0,68797.0,0.75866439]
[1729277777648,0.14895915,68798.0,68797.0,0.715562]
[1729277779242,0.14895915,68798.0,68797.0,0.78021559]
[1729277779845,0.14895915,68798.0,68797.0,0.24858259]
[1729277780246,0.14895915,68798.0,68797.0,0.183929]
[1729277780715,0.14895915,68798.0,68797.0,2.240182]
[1729277780919,0.14895915,68798.0,68797.0,2.30483559]
[1729277781127,0.14895915,68798.0,68797.0,2.32638679]
[1729277781546,0.14895915,68798.0,68797.0,1.11109679]
[1729277781866,0.14895915,68798.0,68797.0,1.024892]
[1729277783108,0.14895915,68798.0,68797.0,1.13271791]
[1729277783753,0.14895915,68798.0,68797.0,1.024892]
[1729277784153,0.14895915,68798.0,68797.0,1.11117367]
[1729277785324,0.14895915,68798.0,68797.0,1.024892]
[1729277785568,0.14895915,68798.0,68797.0,0.318474]
[1729277786185,0.14895915,68798.0,68797.0,0.40479648]
[1729277786467,0.14895915,68798.0,68797.0,0.318474]
[1729277786674,0.14895915,68798.0,68797.0,0.40479961]
[1729277788189,0.17195915,68798.0,68797.0,0.001829]
[1729277788401,0.17215915,68798.0,68797.0,0.001829]
[1729277788647,0.17195915,68798.0,68797.0,0.001829]
[1729277789317,0.17195915,68798.0,68797.0,0.000829]
[1729277789723,0.17195915,68798.0,68797.0,0.001829]
[1729277790400,0.17195915,68798.0,68797.0,0.000829]
[1729277790640,0.17195915,68798.0,68797.0,0.001829]
[1729277791129,0.17195915,68798.0,68797.0,0.000829]
[1729277791614,0.17195915,68798.0,68797.0,0.001829]
[1729277792516,0.14895915,68798.0,68797.0,0.001829]
[1729277796658,0.14895915,68798.0,68797.0,0.080929]
[1729277802265,0.12622598,68798.0,68797.0,0.080929]
[1729277802509,0.12622598,68798.0,68797.0,0.24469673]
[1729277802724,0.12622598,68798.0,68797.0,0.26628597]
[1729277802929,0.12622598,68798.0,68797.0,0.179929]
[1729277803135,0.12622598,68798.0,68797.0,0.331722]
[1729277803560,0.12622598,68798.0,68797.0,0.39546744]
[1729277803966,0.12622598,68798.0,68797.0,0.39646744]
[1729277805026,0.12622598,68798.0,68797.0,0.331722]
[1729277805241,0.12622598,68798.0,68797.0,0.180929]
[1729277806053,0.12622598,68798.0,68797.0,0.24568753]
[1729277806703,0.12622598,68798.0,68797.0,0.180929]
[1729277807078,0.12622598,68798.0,68797.0,0.24567968]
[1729277807307,0.12622598,68798.0,68797.0,0.180929]
[1729277807872,0.13476258,68798.0,68797.0,0.2456749]
[1729277809660,0.13476258,68798.0,68797.0,0.180929]
[1729277809859,0.13476258,68798.0,68797.0,0.22408012]
[1729277810262,0.13476258,68798.0,68797.0,0.180929]
[1729277810690,0.13476258,68798.0,68797.0,0.22408062]
[1729277810903,0.13476258,68798.0,68797.0,0.001829]
[1729277811309,0.13476258,68798.0,68797.0,0.04398062]
[1729277811724,0.13476258,68798.0,68797.0,0.04498062]
[1729277812036,0.13476258,68798.0,68797.0,0.001829]
[1729277813506,0.13476258,68798.0,68797.0,0.0449628]
[1729277813941,0.13476258,68798.0,68797.0,0.001829]
[1729277814548,0.13476258,68798.0,68797.0,0.0449628]
[1729277814748,0.13476258,68798.0,68797.0,0.0439628]
[1729277815155,0.13476258,68798.0,68797.0,0.0449628]
[1729277815355,0.13476258,68798.0,68797.0,0.001829]
[1729277815722,0.15776258,68798.0,68797.0,0.001829]
[1729277816166,0.15796258,68798.0,68797.0,0.001829]
[1729277816374,0.36302464,68798.0,68797.0,0.001829]
[1729277816802,0.3579318,68798.0,68797.0,0.001829]
[1729277818326,0.3579318,68798.0,68797.0,0.000829]
[1729277819072,0.3579318,68798.0,68797.0,0.001829]
[1729277819530,0.3579318,68798.0,68797.0,0.000829]
[1729277819880,0.3579318,68798.0,68797.0,0.001829]
[1729277820289,0.3577318,68798.0,68797.0,0.001829]
[1729277820510,0.3579318,68798.0,68797.0,0.001829]
[1729277820715,0.3577318,68798.0,68797.0,0.001829]
[1729277820911,0.34686258,68798.0,68797.0,0.001829]
[1729277821176,0.35772384,68798.0,68797.0,0.001829]
[1729277822614,0.34706258,68798.0,68797.0,0.001829]
[1729277822997,0.34686258,68798.0,68797.0,0.001829]
[1729277823571,0.15776258,68798.0,68797.0,0.001829]
[1729277823806,0.13476258,68798.0,68797.0,0.001829]
[1729277824456,0.13642058,68798.0,68797.0,0.001829]
[1729277825120,0.15942058,68798.0,68797.0,0.001829]
[1729277827301,0.15962058,68798.0,68797.0,0.001829]
[1729277827515,0.34152058,68798.0,68797.0,0.001829]
[1729277837536,0.352374,68798.0,68797.0,0.001829]
[1729277837977,0.170274,68798.0,68797.0,0.001829]
[1729277838183,0.15942058,68798.0,68797.0,0.001829]
[1729277839964,0.15962058,68798.0,68797.0,0.001829]